bitfinex/quotes_ETHUSD_20220111
["timestamp","ask_amount","ask_price","bid_price","bid_amount"]
[1641917164409,0.00341054,3160.8,3159.5,0.03419411]
[1641917164608,0.00341054,3160.8,3159.7,4.55]
[1641917164609,0.84682204,3160.7,3159.7,4.55]
[1641917164814,0.00284212,3160.7,3159.7,4.55]
[1641917165114,2.4848037,3161.1,3159.9,6.2]
[1641917165311,2.4848037,3161.1,3160.0,0.05902519]
[1641917165511,1.195027,3161.0,3160.0,0.30341054]
[1641917165811,0.00170527,3160.9,3160.1,0.00284211]
[1641917166010,0.00170527,3160.9,3160.2,1.45160998]
[1641917166243,9.95099664,3161.6,3160.4,6.1]
[1641917166443,9.95099664,3161.6,3160.5,0.03576193]
[1641917166643,0.00113685,3161.0,3160.5,0.00170527]
[1641917166845,4.18009664,3161.6,3160.6,0.00113685]
[1641917167145,1.12811999,3161.3,3160.6,0.3]
[1641917167345,0.02065748,3160.9,3160.5,0.00284212]
[1641917167543,0.00113684,3161.2,3160.7,0.00170527]
[1641917167745,0.00113684,3161.2,3160.5,0.30284212]
[1641917167943,0.794438,3162.0,3160.7,0.0457195]
[1641917167944,0.003478,3162.0,3160.7,0.0457195]
[1641917168148,6.731,3161.9,3160.7,0.01196463]
[1641917168346,6.731,3161.9,3159.2,0.126642]
[1641917168347,0.91404294,3161.5,3159.2,0.126642]
[1641917168545,3.56919356,3161.4,3159.2,0.126642]
[1641917168743,0.79125,3161.1,3159.3,0.00852634]
[1641917168945,1.13828315,3160.1,3159.7,1.10459413]
[1641917169246,0.381,3161.0,3159.8,0.00568422]
[1641917169247,0.38213686,3161.0,3159.8,0.00568422]
[1641917170095,0.38213686,3161.0,3159.9,0.0136174]
[1641917170298,1.4226621,3160.6,3160.2,0.98284787]
[1641917170498,1.4226621,3160.6,3160.0,0.00454738]
[1641917170698,1.28870264,3161.2,3160.5,6.35]
[1641917170901,0.16523393,3162.7,3161.1,0.01280674]
[1641917171201,16.3494,3163.3,3161.2,0.03437187]
[1641917171399,16.3494,3163.3,3161.1,1.11570674]
[1641917171400,4.27606011,3162.9,3161.1,0.01280674]
[1641917171598,0.01023162,3162.8,3161.1,0.01280674]
[1641917171801,1.18589114,3162.6,3161.1,0.39380674]
[1641917171998,0.0096632,3162.7,3162.0,0.02534359]
[1641917172203,0.96964082,3163.6,3162.3,3.8]
[1641917172400,0.96964082,3163.6,3163.2,0.01207061]
[1641917172603,0.96964082,3163.6,3163.3,0.39892838]
[1641917172804,0.00413332,3164.4,3163.4,0.381]
[1641917173000,1.47222682,3164.0,3163.4,0.681]
[1641917173208,1.47222682,3164.0,3163.5,0.04152308]
[1641917173209,2.32646807,3164.0,3163.5,0.04152308]
[1641917173400,2.32646807,3164.0,3163.4,0.681]
[1641917173601,2.32646807,3164.0,3163.4,0.674]
[1641917173849,2.32646807,3164.0,3163.4,0.381]
[1641917174245,0.85424125,3164.0,3163.5,0.01976586]
[1641917174445,0.85424125,3164.0,3163.0,5.0]
[1641917174446,1.27334048,3163.6,3163.0,5.0]
[1641917174647,1.27334048,3163.6,3162.8,0.381]
[1641917174846,0.0142833,3163.5,3162.8,0.381]
[1641917175046,0.00454738,3163.5,3162.8,0.381]
[1641917175245,1.27334048,3163.6,3162.8,0.381]
[1641917175246,0.00397896,3163.4,3162.8,0.381]
[1641917175451,1.27334048,3163.6,3162.9,0.03428238]
[1641917175646,1.27334048,3163.6,3162.9,0.0371245]
[1641917175946,1.27334048,3163.6,3163.0,0.00227369]
[1641917176148,1.23845173,3163.6,3163.0,0.00227369]
[1641917176446,1.23845173,3163.6,3162.5,0.00511581]
[1641917176849,0.012538,3163.4,3162.5,0.00511581]
[1641917177048,0.88536119,3162.6,3162.5,0.00511581]
[1641917177247,0.88536119,3162.6,3161.7,0.0096632]
[1641917177693,0.88536119,3162.6,3161.7,0.02221208]
[1641917178098,0.88536119,3162.6,3161.8,0.00909478]
[1641917178296,2.44336382,3161.9,3161.8,0.00909478]
[1641917178495,2.44336382,3161.9,3161.2,0.01250532]
[1641917178695,2.44336382,3161.9,3161.1,0.01307374]
[1641917179497,1.49112497,3161.9,3161.1,0.01307374]
[1641917179696,1.49112497,3161.9,3160.3,0.01273955]
[1641917180095,1.49112497,3161.9,3160.9,0.00113685]
[1641917180096,0.00397896,3161.8,3160.9,0.00113685]
[1641917180498,0.00341054,3161.7,3160.9,0.00113685]
[1641917180701,0.00341054,3161.7,3160.6,0.99574606]
[1641917180897,0.381,3162.2,3160.7,0.00227369]
[1641917181241,0.0022737,3162.1,3160.7,0.00568423]
[1641917181645,0.00170527,3162.0,3160.7,0.00568423]
[1641917181843,1.26497225,3161.3,3160.5,0.00682108]
[1641917182343,1.26497225,3161.3,3160.4,3.19199114]
[1641917182545,1.26497225,3161.3,3160.9,0.00683247]
[1641917182945,1.26497225,3161.3,3161.0,0.00397896]
[1641917183145,0.00113685,3161.9,3161.1,0.02593281]
[1641917183544,0.00113685,3161.9,3161.2,0.00284212]
[1641917184146,0.00113685,3161.9,3161.0,0.00397896]
[1641917184345,0.01036912,3161.3,3161.0,0.00397896]
[1641917184545,0.97523396,3161.3,3161.0,0.00397896]
[1641917184744,0.96486484,3161.3,3161.0,0.00397896]
[1641917185203,1.54248938,3161.4,3161.0,0.00397896]
[1641917185406,1.54248938,3161.4,3161.1,0.05681821]
[1641917185604,1.54248938,3161.4,3161.0,0.00397896]
[1641917185804,1.54248938,3161.4,3161.2,0.00284212]
[1641917186011,1.54248938,3161.4,3161.0,0.00397896]
[1641917187305,1.63803907,3161.3,3161.0,0.00397896]
[1641917187510,1.63803907,3161.3,3161.2,0.0107885]
[1641917187708,0.00845461,3161.0,3160.0,1.0]
[1641917187905,0.01204656,3160.7,3160.0,1.0]
[1641917188126,0.01204656,3160.7,3160.1,0.00511581]
[1641917188305,1.54965023,3160.2,3160.1,0.00511581]
[1641917188764,1.9636,3161.0,3160.1,0.00511581]
[1641917188964,5.8907,3162.2,3160.2,0.05396108]
[1641917188965,0.381,3161.5,3160.2,0.05396108]
[1641917189166,0.381,3161.5,3160.1,0.00511581]
[1641917189365,0.381,3161.9,3160.3,0.00397897]
[1641917189565,18.71,3162.0,3160.3,0.00397897]
[1641917189767,0.87471134,3161.3,3160.3,0.9198334]
[1641917189965,4.8907,3162.2,3160.4,3.18460164]
[1641917189966,0.791,3161.9,3160.4,3.18460164]
[1641917190167,0.13819997,3162.3,3160.5,0.06287448]
[1641917190367,0.13819997,3162.3,3160.5,0.00284212]
[1641917190567,3.9211,3162.8,3160.9,0.04586046]
[1641917190769,3.8869,3162.9,3160.8,0.01295512]
[1641917190970,0.00568424,3162.2,3161.4,1.10315538]
[1641917191176,0.00568424,3162.2,3161.8,0.3]
[1641917191370,1.51684736,3162.4,3161.0,4.18460164]
[1641917191371,0.00511582,3162.1,3161.0,4.18460164]
[1641917191571,0.00511582,3162.1,3161.3,0.6]
[1641917191769,0.00454739,3162.0,3161.3,0.6]
[1641917192070,0.00397897,3161.9,3161.4,1.73453251]
[1641917192273,1.51684736,3162.4,3161.5,5.3]
[1641917192505,3.8869,3162.9,3161.5,5.3022737]
[1641917192506,4.35e-05,3162.2,3161.5,5.3022737]
[1641917192695,1.1955,3163.5,3161.5,5.3022737]
[1641917192696,0.00227369,3162.3,3161.6,0.00170527]
[1641917192896,3.1211,3163.2,3161.8,6.35]
[1641917193196,0.00454739,3163.1,3162.0,0.03879126]
[1641917193396,0.00454739,3163.1,3161.9,8.03491247]
[1641917193597,1.50793328,3162.9,3162.1,0.00113684]
[1641917193800,1.50793328,3162.9,3162.0,0.00170527]
[1641917193999,0.00284212,3162.8,3162.1,0.00113684]
[1641917194199,0.00284212,3162.8,3162.1,3.5]
[1641917194400,0.0022737,3162.7,3162.1,3.5]
[1641917194802,1.29461964,3162.2,3162.1,3.5]
[1641917195103,0.00397897,3163.0,3162.1,3.50113684]
[1641917195299,0.00397897,3163.0,3162.2,0.0282593]
[1641917195501,0.00341054,3162.9,3162.1,3.50113684]
[1641917195700,0.00341054,3162.9,3162.1,3.80113684]
[1641917196000,0.00284212,3162.8,3162.3,1.49493688]
[1641917196243,0.00284212,3162.8,3162.4,4.32460799]
[1641917196446,0.0022737,3162.7,3162.4,4.32460799]
[1641917196643,0.0022737,3162.7,3162.4,1.38311492]
[1641917196842,0.13819997,3163.7,3162.4,1.38311492]
[1641917196843,0.00170527,3162.6,3162.4,1.38311492]
[1641917197247,0.00113685,3162.5,3162.4,1.38311492]
[1641917197445,0.13819997,3163.7,3163.2,0.90789734]
[1641917197647,0.13819997,3163.7,3162.6,3.16127352]
[1641917197846,0.13819997,3163.7,3162.5,0.3]
[1641917197847,0.00568423,3163.5,3162.5,0.3]
[1641917198045,0.00568423,3163.5,3162.4,0.3]
[1641917198245,0.00511581,3163.4,3162.5,3.5]
[1641917198446,0.00511581,3163.4,3162.6,3.18274744]
[1641917198646,0.00454739,3163.3,3162.6,3.48274744]
[1641917198846,0.00454739,3163.3,3162.8,1.52628328]
[1641917199050,0.00397896,3163.2,3162.9,0.03252914]
[1641917199246,0.00397896,3163.2,3162.9,3.17624393]
[1641917199449,4.68483581,3164.2,3163.0,7.14026]
[1641917199450,4.67202359,3164.2,3163.0,7.14026]
[1641917199647,4.67202359,3164.2,3163.8,1.10249507]
[1641917199848,4.67202359,3164.2,3163.9,0.03142292]
[1641917200092,0.00413332,3164.4,3164.0,3.8]
[1641917200292,0.00413332,3164.4,3163.9,1.43448972]
[1641917200493,0.00682108,3164.3,3163.9,1.40651111]
[1641917200791,0.00625266,3164.2,3163.9,1.25651111]
[1641917201192,0.00413332,3164.4,3163.8,1.70249507]
[1641917201193,0.00568423,3164.1,3163.8,1.70249507]
[1641917201395,0.00568423,3164.1,3163.8,1.40249507]
[1641917201595,0.00511581,3164.0,3163.8,1.70249507]
[1641917201793,0.00413332,3164.4,3164.0,0.04695797]
[1641917202202,3.94382565,3165.5,3164.1,4.35]
[1641917202394,3.94382565,3165.5,3164.2,3.86991882]
[1641917202593,0.00341054,3164.9,3164.4,0.99184257]
[1641917202792,0.00341054,3164.9,3164.2,0.81919997]
[1641917202994,3.88082787,3165.5,3164.3,4.05]
[1641917203193,3.88082787,3165.5,3164.3,3.19988395]
[1641917203395,0.00170527,3165.2,3164.4,0.00284212]
[1641917203849,0.00113685,3165.1,3164.4,0.00284212]
[1641917204445,1.52195159,3165.0,3164.4,0.00284212]
[1641917204648,1.3050599,3164.3,3164.2,3.50397896]
[1641917204846,0.00113685,3165.1,3164.3,0.05890916]
[1641917205246,1.8443965,3165.5,3164.4,0.00284212]
[1641917205451,8.9892,3166.3,3164.4,0.00284212]
[1641917205452,5.16395053,3166.8,3165.2,0.01269981]
[1641917205649,5.16395053,3166.8,3164.7,18.71]
[1641917205650,5.32895297,3166.8,3165.9,0.01217265]
[1641917205849,5.16395053,3166.8,3166.2,0.01219975]
[1641917206054,4.38835053,3166.8,3166.3,0.39373997]
[1641917206250,0.00765335,3167.0,3166.5,6.35]
[1641917206450,0.00765335,3167.0,3166.9,4.5]
[1641917206649,0.00765335,3167.0,3166.9,0.981]
[1641917206853,0.01845339,3167.0,3166.9,0.981]
[1641917207056,0.01845339,3167.0,3166.9,7.031]
[1641917207516,0.01845339,3167.0,3166.9,12.78461183]
[1641917207696,3.12229866,3169.0,3166.9,12.78461183]
[1641917207697,48.49354571,3170.0,3167.6,6.11905702]
[1641917207897,26.56604713,3170.0,3168.0,0.01234479]
[1641917208095,26.56604713,3170.0,3168.7,0.01267863]
[1641917208096,11.3015,3169.9,3168.7,0.01267863]
[1641917208298,11.3015,3169.9,3168.8,0.381]
[1641917208497,0.01591586,3169.8,3168.8,0.681]
[1641917208698,1.3180134,3169.7,3169.6,0.01244985]
[1641917208897,1.33336084,3169.7,3169.6,0.39344985]
[1641917209097,0.01534744,3169.7,3169.6,0.39344985]
[1641917209295,11.3015,3169.9,3169.6,0.69344985]
[1641917209499,11.3015,3169.9,3169.6,4.19344985]
[1641917209797,11.3015,3169.9,3169.6,4.53208169]
[1641917209998,11.3015,3169.9,3169.6,4.481]
[1641917210198,1.10618163,3169.8,3168.5,0.03183653]
[1641917210399,0.01227524,3169.7,3168.5,0.381]
[1641917210596,7.81517524,3169.7,3168.6,0.00625266]
[1641917210998,1.11582902,3168.9,3168.6,0.00625266]
[1641917211244,1.24414959,3169.0,3168.6,0.00625266]
[1641917211652,7.8029,3169.7,3169.2,0.05756641]
[1641917211845,7.8029,3169.7,3169.3,0.474257]
[1641917212151,7.8029,3169.7,3169.4,0.33270527]
[1641917212344,7.8029,3169.7,3169.6,2.6]
[1641917212345,1.49451,3169.7,3169.6,2.6]
[1641917212544,1.49451,3169.7,3169.6,3.01889777]
[1641917212747,1.49451,3169.7,3169.6,1.90473747]
[1641917212947,11.3015,3169.9,3169.6,1.90473747]
[1641917212948,6.48797,3169.9,3169.7,0.10065844]
[1641917213149,6.48797,3169.9,3169.8,0.381]
[1641917213347,5.90184095,3170.7,3169.8,4.67893206]
[1641917213547,5.90184095,3170.7,3170.6,3.16280682]
[1641917213750,4.57444095,3170.7,3170.6,3.54380682]
[1641917213948,7.09783873,3171.9,3170.6,7.26485156]
[1641917214147,7.09783873,3171.9,3171.1,0.01275147]
[1641917214348,7.09783873,3171.9,3171.2,0.381]
[1641917214546,7.09783873,3171.9,3171.2,0.681]
[1641917214547,1.14682905,3171.6,3171.2,0.681]
[1641917214999,1.45982016,3171.7,3171.2,1.01353114]
[1641917215195,1.45982016,3171.7,3171.2,0.981]
[1641917215398,7.09783873,3171.9,3171.4,0.01244913]
[1641917215598,5.04783873,3171.9,3171.5,0.381]
[1641917215794,5.04783873,3171.9,3171.4,0.01244913]
[1641917215795,4.40511581,3171.6,3171.4,0.01244913]
[1641917215999,4.40511581,3171.6,3169.8,3.36473]
[1641917216000,4.40511581,3171.6,3170.7,0.01245031]
[1641917216296,4.21022034,3171.8,3170.1,0.381]
[1641917216297,9.06124739,3171.5,3170.5,0.25]
[1641917216497,1.14101782,3170.8,3170.5,0.631]
[1641917216898,0.00397897,3171.4,3170.7,0.1025415]
[1641917217097,0.91241236,3171.2,3170.8,0.381]
[1641917217608,0.91241236,3171.2,3171.0,0.01005414]
[1641917217609,0.0022737,3171.1,3171.0,0.01005414]
[1641917217799,1.32468674,3171.1,3171.0,0.01005414]
[1641917217999,0.0022737,3171.1,3171.0,0.39105414]
[1641917218746,7.89930268,3171.8,3171.0,0.39105414]
[1641917218945,4.7106737,3171.8,3171.0,0.39105414]
[1641917219147,0.00341054,3171.7,3171.0,0.39105414]
[1641917219545,0.00284211,3171.6,3171.0,0.39105414]
[1641917219748,2.05608706,3171.5,3171.1,0.05377181]
[1641917219949,6.03978197,3171.5,3171.0,0.01005414]
[1641917220149,0.00170527,3171.4,3171.0,0.01005414]
[1641917220446,0.00170527,3171.4,3169.8,0.381]
[1641917220447,0.00729553,3171.3,3169.8,0.381]
[1641917220650,0.00729553,3171.3,3171.1,5.27e-06]
[1641917220848,8.6643,3171.3,3169.9,0.00852635]
[1641917221050,8.6643,3171.3,3169.7,0.0079632]
[1641917221246,8.6643,3171.3,3169.8,0.00739478]
[1641917221447,8.6643,3171.3,3169.7,0.0079632]
[1641917221849,1.03605288,3170.1,3169.7,0.0079632]
[1641917222049,0.00506037,3170.0,3169.7,0.0079632]
[1641917222252,11.7841,3171.3,3169.7,0.0079632]
[1641917222504,11.7841,3171.3,3170.2,0.01202168]
[1641917222505,8.70237053,3171.3,3170.2,0.01202168]
[1641917222702,8.70237053,3171.3,3170.2,0.39302168]
[1641917223002,1.00289893,3171.1,3170.3,0.00455266]
[1641917223203,8.70237053,3171.3,3170.3,0.00455266]
[1641917223403,8.66437053,3171.3,3170.4,0.381]
[1641917223605,8.66437053,3171.3,3171.0,0.0144863]
[1641917223802,8.66437053,3171.3,3170.5,3.49204479]
[1641917224002,8.66437053,3171.3,3170.6,0.41869374]
[1641917224303,0.88652623,3171.1,3170.7,0.00227897]
[1641917224503,1.26533109,3171.1,3170.7,0.00227897]
[1641917225108,1.01533109,3171.1,3170.7,0.00227897]
[1641917225303,8.66437053,3171.3,3170.7,0.00227897]
[1641917225702,6.4,3171.2,3170.6,0.37097271]
[1641917225906,0.05161404,3171.1,3170.7,0.25]
[1641917226103,0.97657515,3170.9,3170.7,0.25]
[1641917226541,1.2209076,3171.2,3170.9,4.05]
[1641917226743,1.2209076,3171.2,3170.8,0.00113684]
[1641917227039,1.2209076,3171.2,3170.7,0.00170527]
[1641917227040,1.22204445,3171.2,3170.7,0.00170527]
[1641917227240,6.4,3171.0,3170.6,0.00056843]
[1641917227440,6.4,3171.0,3170.9,0.01951701]
[1641917227441,10.38091923,3171.0,3170.9,0.01951701]
[1641917227940,10.39329339,3171.0,3169.5,3.5]
[1641917228141,10.39329339,3171.0,3169.6,0.0181678]
[1641917228339,10.39329339,3171.0,3169.6,0.00625266]
[1641917228340,4.38204416,3169.7,3169.6,0.00625266]
[1641917228740,1.41008371,3169.7,3169.6,0.00625266]
[1641917228948,16.83123685,3170.9,3169.4,0.381]
[1641917228949,7.11683685,3170.9,3169.4,0.381]
[1641917229145,7.11683685,3170.9,3169.7,0.00849111]
[1641917229342,7.11683685,3170.9,3169.7,0.381]
[1641917229540,7.11683685,3170.9,3169.8,0.00511581]
[1641917229741,7.01683685,3170.9,3169.9,0.91515818]
[1641917229996,7.01683685,3170.9,3169.8,0.00625266]
[1641917229997,1.52789262,3170.8,3169.8,0.00625266]
[1641917230197,0.00689496,3170.7,3170.0,0.00511581]
[1641917230397,4.6769,3170.7,3169.8,0.00625266]
[1641917230594,4.6769,3170.7,3169.9,0.381]
[1641917230795,4.6769,3170.7,3169.9,0.681]
[1641917230994,4.6769,3170.7,3170.1,0.78838]
[1641917231193,4.6769,3170.7,3170.2,0.03916995]
[1641917231395,4.6769,3170.7,3170.2,4.83497798]
[1641917231602,4.6769,3170.7,3170.3,1.00471172]
[1641917231797,0.87544647,3172.1,3171.0,1.00422252]
[1641917231995,7.62504647,3172.1,3170.4,0.38384212]
[1641917232195,0.0257389,3171.8,3170.4,0.00284212]
[1641917232397,0.00511581,3171.8,3170.5,0.00227369]
[1641917232595,0.00511581,3171.8,3170.2,0.381]
[1641917232596,0.00454739,3171.7,3170.6,0.381]
[1641917232899,1.35797903,3171.2,3170.7,0.38213685]
[1641917233197,0.00113685,3171.1,3170.7,0.00113685]
[1641917233750,0.00341054,3171.5,3170.8,0.01547985]
[1641917234144,6.7496,3172.1,3170.7,0.00113685]
[1641917234145,0.00284212,3171.4,3170.7,0.00113685]
[1641917234344,1.1634479,3171.7,3170.9,0.78817]
[1641917234544,1.1634479,3171.7,3170.9,0.6]
[1641917234744,1.1634479,3171.7,3170.2,1.00955116]
[1641917234745,1.1634479,3171.7,3171.0,0.0022737]
[1641917234949,0.02478099,3171.5,3171.0,0.0022737]
[1641917235144,6.4,3171.6,3170.4,0.00568424]
[1641917235546,6.4,3171.6,3170.3,0.00625266]
[1641917235547,1.4716847,3170.5,3170.3,0.00625266]
[1641917235747,6.4,3171.6,3170.3,0.00625266]
[1641917236145,6.4,3171.6,3170.4,0.02337025]
[1641917236546,6.4,3171.6,3170.5,0.00511581]
[1641917236745,1.26594004,3170.7,3170.5,0.00511581]
[1641917236946,3.088671,3171.6,3170.4,0.30568424]
[1641917237148,3.088671,3171.6,3170.5,0.02223125]
[1641917237346,0.02829745,3171.5,3170.5,0.01665719]
[1641917237596,0.00889898,3171.3,3170.4,0.00952018]
[1641917237796,0.01281213,3170.9,3170.4,0.00952018]
[1641917237998,1.16861442,3170.8,3170.4,0.00952018]
[1641917238200,2.51882247,3170.8,3170.4,0.00952018]
[1641917238397,26.46583328,3170.8,3170.4,0.00952018]
[1641917238699,7.75583328,3170.8,3170.4,0.00952018]
[1641917238895,7.75583328,3170.8,3170.5,9.52e-06]
[1641917239100,3.85266362,3170.7,3170.4,0.00952018]
[1641917239298,0.41541087,3170.7,3170.4,0.00952018]
[1641917239495,19.87995,3170.7,3170.4,0.00952018]
[1641917239696,20.87995,3170.7,3170.4,0.00952018]
[1641917239897,18.71,3170.5,3170.4,0.00952018]
[1641917240100,18.71,3170.5,3168.0,8.51034584]
[1641917240101,19.4032434,3170.5,3168.0,8.51034584]
[1641917240299,25.60519361,3170.4,3168.0,8.51034584]
[1641917240498,25.60519361,3170.4,3168.1,0.03482564]
[1641917240499,0.78915,3169.8,3168.1,0.03482564]
[1641917240702,1.25421078,3168.7,3168.0,0.0128386]
[1641917240898,0.0122434,3170.5,3168.3,0.0165536]
[1641917241100,1.1572,3170.7,3168.2,0.01364216]
[1641917241101,6.8027,3170.7,3169.2,0.01239058]
[1641917241356,1.1572,3170.7,3169.3,0.381]
[1641917241555,1.1572,3170.7,3169.7,0.78854]
[1641917241749,1.1572,3170.7,3169.4,3.47681596]
[1641917241750,12.87356,3170.6,3170.0,0.01257099]
[1641917241948,12.87356,3170.6,3170.0,1.01325371]
[1641917241949,14.34792034,3170.6,3170.0,1.01325371]
[1641917242148,12.87356,3170.6,3170.1,0.68384212]
[1641917242549,0.019533,3170.4,3170.2,0.00227369]
[1641917242949,6.9676,3171.2,3170.2,6.35227369]
[1641917243150,6.9676,3171.2,3170.2,6.38411787]
[1641917243353,6.9676,3171.2,3170.3,0.00284212]
[1641917243354,6.96987369,3171.2,3170.3,0.00284212]
[1641917243553,6.96987369,3171.2,3170.4,1.0]
[1641917243752,0.00227369,3171.2,3170.5,3.5149902]
[1641917243950,1.14697463,3171.1,3170.6,0.381]
[1641917244150,1.14697463,3171.1,3170.6,0.38213685]
[1641917244351,0.00113684,3171.0,3170.6,0.38213685]
[1641917244549,0.00113684,3171.0,3170.7,0.78831]
[1641917244750,0.00454738,3171.6,3170.7,0.78831]
[1641917244999,0.06425905,3171.5,3170.8,0.381]
[1641917245201,0.00397896,3171.5,3170.9,0.0198221]
[1641917245400,3.73660126,3171.9,3170.8,0.41513954]
[1641917245401,0.953667,3171.9,3171.0,0.381]
[1641917245599,3.9,3171.8,3171.1,0.381]
[1641917245802,0.05002298,3171.7,3171.1,0.38270527]
[1641917246002,3.90227369,3171.8,3171.2,0.00113685]
[1641917246203,0.00113684,3171.6,3171.2,0.00113685]
[1641917246400,0.00170527,3171.7,3171.2,0.00113685]
[1641917246603,3.7,3171.6,3170.7,0.33213685]
[1641917246801,3.70227369,3171.6,3170.8,0.00227369]
[1641917247000,0.00170527,3171.5,3170.8,0.00227369]
[1641917247401,0.00113685,3171.4,3171.3,0.03001547]
[1641917248003,0.00113685,3171.4,3171.3,1.38456428]
[1641917248204,0.953667,3171.9,3171.3,1.38456428]
[1641917248507,0.06839167,3171.8,3171.3,1.38456428]
[1641917248751,0.00227369,3171.8,3171.3,1.38456428]
[1641917248945,0.953667,3171.9,3171.3,0.33001547]
[1641917248946,0.00170527,3171.7,3171.3,0.33001547]
[1641917249146,0.00170527,3171.7,3171.3,0.03001547]
[1641917249344,0.953667,3171.9,3171.3,0.03001547]
[1641917249345,0.00113684,3171.6,3171.3,0.03001547]
[1641917250349,6.4584284,3173.2,3171.5,5.91211981]
[1641917250553,6.4584284,3173.2,3171.6,0.54417846]
[1641917250748,6.4584284,3173.2,3171.6,0.681]
[1641917250749,0.00113685,3171.8,3171.6,0.681]
[1641917250948,0.00113685,3171.8,3171.6,0.3]
[1641917251151,0.00113685,3171.8,3171.4,2.68542519]
[1641917251348,1.26045121,3171.5,3171.4,2.68542519]
[1641917251647,1.16045121,3171.5,3171.4,2.68542519]
[1641917251847,0.00113685,3171.8,3171.4,2.68542519]
[1641917252048,0.00113685,3171.8,3171.3,2.12290565]
[1641917252049,6.46810719,3171.7,3171.3,2.12290565]
[1641917252249,0.03302981,3171.6,3171.3,2.12290565]
[1641917252493,0.03302981,3171.6,3170.2,6.35]
[1641917252494,0.00113684,3171.6,3170.7,2.12290565]
[1641917252894,0.00113684,3171.6,3170.8,0.00341054]
[1641917253195,0.04963253,3171.1,3170.8,0.00341054]
[1641917253394,1.34618601,3171.2,3170.8,0.00341054]
[1641917253804,0.02857717,3171.1,3170.8,0.00341054]
[1641917254196,0.02857717,3171.1,3170.5,2.90099024]
[1641917254395,1.35889603,3171.2,3170.5,2.90099024]
[1641917254396,0.00113684,3171.0,3170.5,2.90099024]
[1641917254597,10.33647282,3171.1,3170.5,0.00122709]
[1641917254900,10.33647282,3171.1,3170.6,0.02196286]
[1641917254901,10.30724856,3171.1,3170.6,0.02196286]
[1641917255197,6.40170528,3171.1,3170.6,0.00113684]
[1641917255396,6.4,3171.0,3169.5,3.6348776]
[1641917255597,0.92423527,3170.2,3169.9,0.00397896]
[1641917255797,1.20574292,3170.1,3169.9,0.00397896]
[1641917256257,0.00113685,3170.8,3169.9,0.00397896]
[1641917256451,0.00113685,3170.8,3170.0,0.01401686]
[1641917256647,0.00113685,3170.8,3169.7,1.57702]
[1641917256850,0.00113685,3170.8,3170.1,0.00284212]
[1641917257048,0.00113685,3170.8,3169.8,0.00454739]
[1641917257248,1.18752573,3170.5,3169.8,0.00454739]
[1641917257453,0.04368687,3170.0,3169.8,0.00454739]
[1641917257647,0.04368687,3170.0,3169.8,3.63942499]
[1641917257849,1.47763217,3170.7,3169.8,3.6722715]
[1641917258049,1.47763217,3170.7,3170.2,1.08847]
[1641917258249,1.47763217,3170.7,3170.2,1.12507029]
[1641917258450,4.09702612,3171.9,3170.2,1.12507029]
[1641917258451,0.8234606,3172.4,3170.3,0.00284212]
[1641917258648,0.8234606,3172.4,3170.4,0.03092186]
[1641917258649,4.17201974,3172.2,3170.4,0.03092186]
[1641917258852,0.00341054,3171.4,3170.3,0.00284212]
[1641917259056,0.00341054,3171.4,3170.5,0.79010527]
[1641917259249,0.00284211,3171.3,3170.5,0.7884]
[1641917259449,1.21301071,3170.9,3170.6,0.00113685]
[1641917259651,1.21301071,3170.9,3170.7,0.01683983]
[1641917259850,1.21301071,3170.9,3170.6,0.00113685]
[1641917260102,0.00227369,3171.2,3170.6,0.00113685]
[1641917260300,0.00227369,3171.2,3170.7,0.06123968]
[1641917260501,3.9938,3172.1,3170.9,0.78829]
[1641917260700,4.7804878,3172.9,3171.0,0.0444395]
[1641917260701,3.50617944,3172.8,3171.0,0.0444395]
[1641917260898,0.00511581,3172.0,3170.9,1.08829]
[1641917261099,1.42905409,3171.4,3171.0,0.02063901]
[1641917261298,0.90105277,3171.3,3170.9,1.08829]
[1641917261501,0.90218961,3171.3,3170.9,0.3]
[1641917261702,0.90218961,3171.3,3170.8,0.30170527]
[1641917261900,0.025139,3171.2,3170.8,0.00170527]
[1641917262199,0.90218961,3171.3,3169.7,6.0000976]
[1641917262200,0.02100731,3171.0,3170.5,0.00341054]
[1641917262498,1.33877186,3170.9,3170.3,4.02693854]
[1641917262898,0.00227369,3171.2,3170.4,0.0022737]
[1641917263398,0.00170527,3171.1,3170.4,0.0022737]
[1641917263764,0.00113684,3171.0,3170.4,0.0022737]
[1641917263957,1.28120907,3170.6,3170.4,0.0022737]
[1641917264557,1.28120907,3170.6,3169.8,0.7886]
[1641917264558,1.28120907,3170.6,3169.9,0.00511581]
[1641917265364,1.28120907,3170.6,3169.7,0.00625266]
[1641917265561,4.9612,3171.2,3169.5,0.01981731]
[1641917265562,1.08934046,3169.8,3169.5,0.01981731]
[1641917265761,1.08934046,3169.8,3169.6,1.58396109]
[1641917265962,1.08934046,3169.8,3169.6,1.88396109]
[1641917266162,1.19810527,3171.1,3169.8,0.02656202]
[1641917266362,1.14550758,3170.5,3170.0,0.78854]
[1641917266564,0.00113684,3171.0,3170.1,3.5164981]
[1641917266765,0.00113684,3171.0,3170.1,0.04395627]
[1641917266965,0.00113684,3171.0,3170.0,1.08854]
[1641917266966,0.00113684,3171.0,3170.2,0.00341054]
[1641917267162,0.00113684,3171.0,3170.3,0.02212405]
[1641917267163,1.30673263,3170.4,3170.3,0.02212405]
[1641917267363,1.30673263,3170.4,3170.1,0.00397897]
[1641917267602,1.30673263,3170.4,3170.3,0.00284212]
[1641917267801,1.30673263,3170.4,3169.9,0.00511581]
[1641917268001,1.30673263,3170.4,3170.0,0.78857]
[1641917268198,1.30673263,3170.4,3170.1,0.05345464]
[1641917268397,1.30673263,3170.4,3170.1,0.00397897]
[1641917268600,1.30673263,3170.4,3170.2,0.00341054]
[1641917268799,1.30673263,3170.4,3170.1,0.00397897]
[1641917269200,0.98265835,3170.7,3170.1,0.04646166]
[1641917269402,0.00113684,3171.0,3170.1,0.039024]
[1641917269603,0.00113684,3171.0,3170.3,0.05847684]
[1641917270001,0.00113684,3171.0,3170.0,1.87695]
[1641917270002,0.00113684,3171.0,3170.4,0.0022737]
[1641917270201,1.33486237,3170.7,3170.4,0.0022737]
[1641917270400,1.33486237,3170.7,3170.0,2.28923189]
[1641917270401,1.33486237,3170.7,3170.3,0.82539967]
[1641917270600,1.33486237,3170.7,3170.3,1.12539967]
[1641917270801,0.00113684,3171.0,3170.4,0.0022737]
[1641917271001,0.00113684,3171.0,3170.5,0.06123968]
[1641917271252,0.00113684,3171.0,3170.4,0.0022737]
[1641917271449,0.00113684,3171.0,3170.6,0.00113685]
[1641917271648,0.00113684,3171.0,3170.4,0.0022737]
[1641917271847,0.00113684,3171.0,3170.3,0.78847]